bitfinex/quotes_ETHUSD_20250822
["timestamp","ask_amount","ask_price","bid_price","bid_amount"]
[1755873106485,1.67,4603.2,4602.8,0.47]
[1755873106885,1.67,4603.2,4602.8,0.02]
[1755873106886,0.02715561,4603.1,4602.8,0.02]
[1755873107810,2.19965093,4603.1,4602.8,0.02]
[1755873108027,3.02715561,4603.1,4601.8,0.02]
[1755873108225,5.22,4603.0,4601.8,0.02]
[1755873108518,6.84715679,4602.9,4601.8,0.02]
[1755873108751,5.19975682,4602.8,4601.8,0.02]
[1755873108919,0.02715797,4602.7,4601.8,0.02]
[1755873109087,2.17297663,4602.0,4601.8,0.02]
[1755873109419,0.02716269,4601.9,4601.8,0.02]
[1755873109619,6.064,4601.9,4601.8,0.02]
[1755873109793,2.17269385,4602.6,4601.8,0.02]
[1755873109994,3.0,4602.4,4601.8,0.02]
[1755873110206,0.02716033,4602.3,4601.8,0.02]
[1755873110524,6.065,4602.2,4601.8,0.02]
[1755873110823,3.0,4602.1,4601.8,0.02]
[1755873111005,4.67,4602.9,4601.8,0.02]
[1755873111206,6.064,4602.8,4601.8,0.02]
[1755873111411,0.02715797,4602.7,4601.8,0.02]
[1755873111612,6.09015797,4602.7,4601.8,0.02]
[1755873111787,3.0,4602.6,4601.8,0.02]
[1755873111997,2.17301549,4601.9,4601.8,0.02]
[1755873112209,2.20017818,4601.9,4601.8,0.02]
[1755873112613,2.20017818,4601.9,4600.8,0.02]
[1755873112614,30.02716269,4601.9,4600.8,0.02]
[1755873112831,4.671,4600.9,4600.8,0.02]
[1755873113042,1.671,4600.9,4600.8,0.02]
[1755873113238,7.733,4600.9,4600.8,0.02]
[1755873113529,1.671,4600.9,4600.8,0.02]
[1755873113756,1.671,4600.9,4600.8,0.4653]
[1755873113935,7.732,4600.9,4600.8,0.4653]
[1755873114434,7.732,4600.9,4600.8,0.02]
[1755873114637,12.955,4600.9,4600.8,0.02]
[1755873114801,6.894,4600.9,4600.8,0.02]
[1755873115135,15.954,4600.9,4600.8,0.02]
[1755873115340,3.0,4600.8,4599.8,0.021]
[1755873115498,0.02716977,4600.7,4599.8,0.021]
[1755873115902,0.02716977,4600.7,4599.9,0.001]
[1755873115903,3.0,4600.5,4599.9,0.001]
[1755873116148,7.23420931,4600.9,4600.0,3.159712]
[1755873116149,1.671,4600.4,4600.0,3.159712]
[1755873116312,1.671,4600.4,4600.1,4.843556]
[1755873116505,1.671,4600.4,4600.2,0.4508]
[1755873116506,6.058,4600.3,4600.2,0.4508]
[1755873116699,1.5323,4600.4,4600.2,2.712617]
[1755873116943,0.02,4602.8,4602.4,2.17275816]
[1755873117243,0.02,4602.8,4600.3,0.30307882]
[1755873117244,1.671,4603.9,4602.8,6.052215]
[1755873117428,6.077,4604.8,4603.9,13.708386]
[1755873117620,6.077,4604.8,4602.9,3.0034]
[1755873117621,6.077,4604.8,4603.2,2.1724018]
[1755873117808,6.077,4604.8,4604.0,0.0442]
[1755873118004,6.077,4604.8,4604.1,3.080741]
[1755873118205,0.02714617,4604.7,4601.8,2.17306271]
[1755873118421,6.056,4604.6,4603.2,2.1724018]
[1755873118607,6.056,4604.6,4603.8,2.17208738]
[1755873118805,0.02,4604.8,4604.0,2.17202432]
[1755873119030,0.02,4604.8,4604.3,2.17185729]
[1755873119227,0.02,4604.8,4603.9,0.0346]
[1755873119228,0.02,4604.8,4604.4,2.926122]
[1755873119513,0.02,4604.8,4604.6,2.17172807]
[1755873119708,0.02,4604.8,4604.7,5.851021]
[1755873119905,6.072,4604.8,4603.3,2.17233215]
[1755873120113,6.072,4604.8,4603.6,0.0351]
[1755873120312,6.052,4604.7,4603.7,3.012617]
[1755873120633,0.002,4605.9,4604.7,25.99750943]
[1755873120833,0.002,4605.9,4604.8,2.018248]
[1755873121013,0.002,4605.9,4604.9,4.428283]
[1755873121218,0.002,4605.9,4604.3,2.949788]
[1755873121446,0.002,4605.9,4604.4,0.0951]
[1755873121650,6.052,4605.9,4604.5,5.012733]
[1755873121853,0.002,4605.9,4604.6,3.001]
[1755873122021,0.002,4605.9,4605.7,2.17121482]
[1755873122355,0.002,4605.9,4604.7,19.100703]
[1755873122356,0.002,4605.9,4605.8,2.316608]
[1755873122526,0.002,4605.9,4604.9,3.0552]
[1755873122848,0.002,4605.9,4605.7,2.17119971]
[1755873123053,0.002,4605.9,4605.8,2.715418]
[1755873123229,1.67,4608.2,4605.9,5.17112833]
[1755873123426,1.67,4608.2,4607.6,2.17028976]
[1755873123631,1.67,4608.2,4607.7,20.488386]
[1755873123953,1.67,4609.2,4607.8,23.911765]
[1755873124133,0.02,4609.8,4609.4,2.16947489]
[1755873124327,0.02,4609.8,4607.9,0.1051]
[1755873124639,0.02,4609.8,4608.1,3.0]
[1755873124956,0.0192,4609.8,4608.3,3.0]
[1755873125125,0.02711673,4609.7,4607.0,0.16002434]
[1755873125327,6.043,4609.6,4607.2,3.0]
[1755873125527,5.2461179,4609.5,4607.3,2.338555]
[1755873125759,1.69711849,4609.4,4607.4,2.094761]
[1755873126051,0.4323,4609.3,4606.3,0.0015]
[1755873126258,1.67,4609.4,4606.4,4.834444]
[1755873126416,6.49741908,4609.3,4606.5,0.0203]
[1755873126618,0.4323,4609.3,4606.6,3.600344]
[1755873126820,6.038,4609.2,4606.6,2.5529734]
[1755873127014,6.06512026,4609.1,4606.6,0.3620644]
[1755873127253,6.06412085,4609.0,4606.7,7.183881]
[1755873127438,3.0,4608.9,4605.3,0.0015]
[1755873127658,2.17019986,4607.9,4604.5,0.0016]
[1755873127859,0.02,4604.8,4604.7,2.17169094]
[1755873128059,0.02,4605.8,4605.7,2.17122261]
[1755873128374,1.669,4611.1,4606.3,0.2]
[1755873128574,1.669,4610.8,4608.4,3.0]
[1755873128802,1.669,4610.8,4608.6,3.0]
[1755873129074,1.669,4610.8,4609.7,0.1088]
[1755873129376,1.669,4610.8,4609.7,4.972606]
[1755873129377,0.02711085,4610.7,4609.7,4.972606]
[1755873129542,0.02711085,4610.7,4609.7,0.1088]
[1755873129877,5.218,4610.1,4609.7,4.675991]
[1755873130088,6.032,4610.6,4609.7,0.1088]
[1755873130289,0.02711202,4610.5,4609.7,2.359643]
[1755873130585,6.032,4610.6,4609.7,2.359643]
[1755873130586,0.0291132,4610.3,4609.7,0.1088]
[1755873130955,0.002,4610.3,4609.7,9.296731]
[1755873131154,0.002,4610.3,4609.7,6.9118151]
[1755873131389,0.002,4610.3,4609.7,19.6730011]
[1755873131590,0.002,4610.3,4609.7,4.030831]
[1755873131793,0.002,4610.3,4609.8,2.1692915]
[1755873131995,0.002,4610.3,4610.2,0.1088]
[1755873132194,0.002,4610.3,4610.2,5.251313]
[1755873132355,0.002,4610.3,4609.5,2.16938975]
[1755873132556,0.002,4610.3,4609.6,9.29315]
[1755873132757,6.029,4610.3,4609.1,2.682346]
[1755873132952,6.029,4610.3,4609.4,2.16943425]
[1755873133152,0.002,4610.3,4609.6,3.0]
[1755873133357,0.002,4610.3,4610.1,2.16913831]
[1755873133587,0.002,4610.3,4610.2,26.889307]
[1755873133797,0.002,4610.3,4610.2,5.60394]
[1755873134086,0.002,4610.3,4610.2,8.352606]
[1755873134288,0.002,4610.3,4609.9,2.649402]
[1755873134497,0.002,4610.3,4609.9,0.0189]
[1755873134793,0.002,4610.3,4610.2,2.16910329]
[1755873135099,0.002,4610.3,4609.2,0.0162]
[1755873135410,0.002,4610.3,4609.3,2.278989]
[1755873135701,0.002,4610.3,4609.3,2.16951523]
[1755873135883,0.002,4610.3,4609.4,3.283479]
[1755873136063,0.002,4610.3,4609.4,16.492219]
[1755873136402,0.002,4610.3,4609.4,2.308851]
[1755873136599,0.002,4610.3,4608.4,0.16610309]
[1755873136901,5.215,4610.2,4605.7,0.43425285]
[1755873137067,3.4643,4610.1,4605.8,3.477307]
[1755873137266,0.49221496,4610.0,4605.6,8.618538]
[1755873137465,6.019,4609.9,4605.7,0.1683]
[1755873137685,0.49221614,4609.8,4605.8,2.200058]
[1755873137959,30.0,4609.7,4603.8,0.02]
[1755873138192,2.17037438,4607.5,4603.8,0.02]
[1755873138501,5.414,4608.0,4603.8,0.02]
[1755873138502,1.668,4606.5,4603.8,0.02]
[1755873138822,0.02713615,4606.4,4603.8,0.02]
[1755873139007,1.668,4605.4,4603.8,0.02]
[1755873139169,2.17188596,4604.3,4603.8,0.02]
[1755873139369,1.69514912,4604.2,4603.8,0.02]
[1755873139570,2.16024912,4604.2,4603.8,0.02]
[1755873139791,0.4651,4604.1,4603.8,0.02]
[1755873140101,8.1870405,4604.0,4603.8,0.02]
[1755873140260,3.0,4603.9,4603.8,0.02]
[1755873140594,3.0,4603.9,4602.6,0.001]
[1755873140595,3.4651,4603.9,4602.6,0.001]
[1755873140802,3.0,4603.9,4599.8,0.021]
[1755873140999,6.015,4604.0,4599.8,0.021]
[1755873141182,3.02715089,4603.9,4599.8,0.021]
[1755873141386,3.49225089,4603.9,4599.8,0.021]
[1755873141600,0.34007747,4603.5,4600.0,0.1464]
[1755873141801,0.36723072,4603.5,4599.8,0.021]
[1755873142106,0.36723072,4603.5,4601.9,3.599354]
[1755873142107,7.71115384,4603.4,4601.9,3.599354]
[1755873142413,0.34007747,4603.5,4602.0,0.4556354]
[1755873142624,1.669,4603.9,4602.0,5.310365]
[1755873142826,1.669,4603.9,4603.4,0.1088]
[1755873143030,0.2,4608.6,4602.1,0.0933]
[1755873143031,0.02,4604.2,4604.0,2.1720171]
[1755873143188,0.02,4604.2,4604.1,2.819101]
[1755873143386,0.02,4604.2,4604.1,12.588476]
[1755873143589,0.02,4604.2,4604.1,3.92538506]
[1755873143784,1.669,4605.0,4604.1,0.92826306]
[1755873144017,1.669,4605.0,4604.2,6.844288]
[1755873144228,0.02714499,4604.9,4602.8,0.047]
[1755873144397,0.02714499,4604.9,4602.7,2.6992]
[1755873144598,0.02714499,4604.9,4601.6,0.0474]
[1755873144599,0.33990456,4604.7,4601.6,0.0474]
[1755873144792,0.33990456,4604.7,4601.9,2.183]
[1755873144993,3.0,4604.5,4601.9,0.23355]
[1755873145202,0.02714794,4604.4,4601.7,0.1325]
[1755873145404,0.02714794,4604.4,4601.9,2.069437]
[1755873145817,0.02714794,4604.4,4603.8,0.02]
[1755873146125,0.4651,4604.3,4603.8,0.02]
[1755873146426,3.02714912,4604.2,4603.8,0.02]
[1755873146595,4.67,4603.9,4603.8,0.02]
[1755873146790,1.67,4603.9,4601.8,0.02]
[1755873147017,0.49225148,4603.8,4602.0,0.001]
[1755873147202,3.0,4603.6,4602.0,0.001]
[1755873147410,0.02715325,4603.5,4602.0,0.001]
[1755873147731,0.4651,4603.4,4602.0,0.001]
[1755873147895,6.03715443,4603.3,4602.0,0.001]
[1755873148223,1.67,4603.9,4602.0,0.001]
[1755873148224,6.01,4603.2,4602.0,0.001]
[1755873148524,11.25615561,4603.1,4602.0,0.001]
[1755873148730,11.229,4603.1,4602.0,0.001]
[1755873148933,6.0361562,4603.0,4602.0,0.001]
[1755873149227,6.0082,4603.0,4602.0,0.001]
[1755873149431,5.219,4603.1,4602.1,2.661]
[1755873149592,6.008,4603.0,4602.1,8.95081217]
[1755873149925,6.008,4603.7,4602.2,2.693452]
[1755873150139,1.67,4603.9,4602.3,4.014901]
[1755873150308,7.678,4603.9,4602.5,3.0]
[1755873150630,7.678,4603.9,4603.7,2.17212146]
[1755873150832,1.67,4603.9,4603.8,7.243503]
[1755873151130,1.67,4604.8,4603.9,3.06697]
[1755873151347,1.67,4604.8,4604.0,2.022784]
[1755873151516,6.03314617,4604.7,4603.3,0.001]
[1755873151694,0.02714676,4604.6,4603.4,5.81776]
[1755873151895,5.22,4605.7,4603.5,0.1936]
[1755873151896,1.67,4604.5,4603.5,0.1936]
[1755873152096,1.67,4605.3,4605.1,2.17146535]
[1755873152300,5.22,4607.3,4605.7,2.17122261]
[1755873152301,1.67,4606.6,4605.7,2.17122261]
[1755873152499,5.22,4609.0,4605.7,3.4686]
[1755873152693,7.52522143,4608.9,4605.8,0.047]
[1755873152997,6.4981,4608.9,4605.9,2.808167]
[1755873153195,6.004,4608.8,4606.4,2.17088904]
[1755873153423,6.004,4608.8,4606.0,0.2855167]
[1755873153424,0.02712261,4608.7,4606.0,0.2855167]
[1755873153731,0.02712261,4608.7,4606.1,2.835]
[1755873153939,3.0,4608.5,4604.9,0.0468]
[1755873154098,0.33971609,4608.1,4604.3,0.0387]
[1755873154431,3.49222673,4608.0,4604.3,0.0387]
[1755873154620,0.4651,4607.9,4604.4,6.637661]
[1755873154817,3.0,4607.6,4604.4,0.6637661]
[1755873155021,1.67,4607.7,4604.5,7.166473]
[1755873155226,6.001,4607.6,4604.7,3.0]
[1755873155413,5.22,4609.0,4604.9,3.0]
[1755873155614,1.67,4609.3,4605.9,2.17112833]
[1755873155829,1.67,4609.3,4606.2,2.17098693]
[1755873156031,1.67,4609.3,4606.4,3.0]
[1755873156340,0.02711967,4609.2,4606.5,5.77927]
[1755873156501,1.67,4609.3,4606.3,2.29926696]
[1755873156502,1.67,4609.3,4606.3,0.0497]
[1755873156844,1.67,4609.3,4606.4,3.406265]
[1755873157012,1.67,4609.2,4606.6,3.0]
[1755873157214,6.02512026,4609.1,4606.7,9.90711196]
[1755873157415,3.4651,4609.0,4605.3,0.0017]
[1755873157655,0.02712143,4608.9,4604.2,0.0764]
[1755873157861,1.67,4608.8,4604.3,14.008607]
[1755873158154,3.0,4608.6,4604.4,32.24680827]
[1755873158355,3.0,4608.4,4604.5,12.397891]
[1755873158555,0.46592497,4608.3,4604.4,0.075]
[1755873158738,0.46592497,4608.3,4603.1,0.001]
[1755873158739,1.67,4607.5,4603.1,0.001]
[1755873159063,1.67,4607.5,4603.4,2.919717]
[1755873159219,3.0,4607.3,4603.1,0.001]
[1755873159420,0.02713144,4607.2,4603.1,0.001]
[1755873159620,0.02713144,4607.2,4600.5,4.27317243]
[1755873159621,32.60936282,4607.1,4600.5,4.27317243]
[1755873159835,32.60936282,4607.1,4600.4,1.7444]
[1755873159836,1.67,4606.4,4603.4,2.027]
[1755873160034,1.67,4606.4,4602.6,0.0014]
[1755873160035,3.0,4606.2,4602.6,0.0014]
[1755873160353,3.0,4606.2,4601.5,0.1181]
[1755873160354,0.02713792,4606.1,4601.5,0.1181]
[1755873160544,0.4388,4606.0,4603.4,5.210034]
[1755873160743,3.0271391,4605.9,4602.8,2.52238075]
[1755873160946,3.0271391,4605.9,4602.8,0.02]
[1755873161148,3.0,4605.7,4602.8,0.02]
[1755873161327,5.17145835,4605.2,4602.8,0.02]
[1755873161524,3.33996231,4605.3,4602.8,0.02]
[1755873161525,1.67,4605.1,4602.8,0.02]
[1755873161723,6.0181444,4605.0,4602.8,0.02]
[1755873161938,1.67,4605.1,4602.8,0.02]
[1755873162137,3.4388,4604.9,4602.8,0.02]
[1755873162349,0.4388,4604.9,4602.8,0.02]
[1755873162533,3.0,4604.4,4602.8,0.02]
[1755873162744,3.0,4604.2,4602.8,0.02]
[1755873162947,0.02631994,4604.1,4602.8,0.02]
[1755873163263,5.989,4604.0,4602.8,0.02]
[1755873163424,1.69715089,4603.9,4602.8,0.02]
[1755873163624,1.69715089,4603.9,4603.4,0.1088]
[1755873163819,1.67,4603.8,4603.5,0.0117]
[1755873164023,7.658,4604.8,4603.7,0.1088]
[1755873164223,7.68432819,4604.7,4603.7,0.1088]
[1755873164446,7.68432819,4604.7,4602.8,0.02]
[1755873164447,6.01514676,4604.6,4603.1,0.0767]
[1755873164758,0.02714735,4604.5,4602.8,0.02]
[1755873164964,0.02714735,4604.5,4604.1,0.1088]
[1755873165258,0.4388,4604.4,4602.8,0.02]
[1755873165457,0.02714853,4604.3,4602.8,0.02]
[1755873165659,5.986,4604.2,4602.8,0.02]
[1755873165964,1.67,4604.7,4604.2,4.099875]
[1755873166262,0.46594676,4604.6,4602.8,0.02]
[1755873166946,5.984,4604.5,4603.4,3.14686]
[1755873167258,1.67,4604.7,4603.6,2.17221033]
[1755873167423,1.67,4604.7,4603.2,2.17236978]
[1755873167424,1.67,4604.7,4603.7,9.62320475]
[1755873167625,1.67,4604.7,4602.8,0.02]
[1755873167626,5.983,4604.6,4602.8,0.02]
[1755873167825,0.02714735,4604.5,4602.8,0.0518]
[1755873168149,0.02714676,4604.6,4603.4,4.609001]
[1755873168350,5.982,4604.4,4602.8,0.02]
[1755873168662,3.02714853,4604.3,4602.8,0.02]
[1755873168826,5.982,4604.2,4602.8,0.02]
[1755873169027,5.24714971,4604.1,4602.8,0.02]
[1755873169222,7.6781503,4604.0,4602.8,0.02]
[1755873169436,5.981,4603.9,4602.8,0.02]
[1755873169650,6.00715148,4603.8,4602.8,0.02]
[1755873169834,0.02715207,4603.7,4602.8,0.02]
[1755873170039,3.46595207,4603.7,4602.8,0.02]
[1755873170326,6.4188,4603.6,4602.8,0.02]
[1755873170558,1.67,4602.9,4599.3,0.0096]
[1755873170758,11.72179033,4603.3,4598.0,0.001]
[1755873170759,3.84348779,4600.9,4598.0,0.001]
[1755873170965,2.17391304,4600.0,4598.0,0.001]
[1755873171127,3.0,4599.9,4598.0,0.001]
[1755873171329,1.69717509,4599.8,4598.0,0.001]
[1755873171527,5.978,4599.7,4598.0,0.001]
[1755873171824,0.02717627,4599.6,4598.8,2.19445082]
[1755873172126,1.69717686,4599.5,4598.8,0.02]
[1755873172325,7.647,4599.4,4598.8,0.02]
[1755873172634,5.976,4599.3,4598.8,0.4859]
[1755873172963,5.22,4601.3,4599.3,29.610884]
[1755873173135,1.69716682,4601.2,4599.4,0.4701]
[1755873173462,6.893,4601.1,4599.4,0.4701]
[1755873173636,1.671,4601.2,4599.5,30.0]
[1755873173842,1.6702,4601.2,4600.0,3.0]
[1755873174027,4.88574753,4604.6,4599.6,5.71966696]
[1755873174028,5.222,4604.2,4600.8,3.0]
[1755873174369,1.671,4604.1,4601.6,11.72179033]
[1755873174580,1.671,4604.1,4603.6,2.17220104]
[1755873174743,1.671,4604.1,4601.6,11.72179033]
[1755873174744,7.646,4604.1,4602.9,0.0084]
[1755873175077,7.646,4604.1,4604.0,0.1088]
[1755873175228,7.646,4604.1,4602.9,0.0084]
[1755873175423,0.0271503,4604.0,4601.6,11.72179033]
[1755873175628,5.974,4603.9,4602.0,0.0089]
[1755873175828,5.973,4603.8,4603.4,2.17227053]
[1755873176149,5.973,4603.8,4602.3,0.16093719]
[1755873176326,1.671,4604.1,4602.6,0.0088]
[1755873176529,0.02,4605.8,4604.7,2.17169413]
[1755873176725,1.67,4605.4,4604.7,2.85717741]
[1755873176924,1.67,4605.4,4604.7,3.24713541]
[1755873177157,1.67,4605.4,4604.6,2.17173342]
[1755873177327,0.02714264,4605.3,4603.0,3.0]
[1755873177534,0.02714264,4605.3,4603.1,2.066708]
[1755873177838,0.4588,4605.8,4603.0,3.0]
[1755873177839,0.02,4605.8,4603.0,3.0]
[1755873178160,4.779,4605.8,4604.6,2.17170881]
[1755873178363,0.02,4605.8,4604.7,11.074627]
[1755873178535,0.02,4603.8,4603.7,2.17216586]
[1755873178737,0.02,4603.8,4603.7,14.28865286]
[1755873178936,5.969,4605.6,4603.7,23.92691986]
[1755873179137,5.969,4605.6,4604.7,2.17169413]
[1755873179337,0.02,4605.8,4604.7,2.100115]
[1755873179570,0.02,4605.8,4603.7,3.0]
[1755873179571,6.01313969,4605.8,4604.6,2.719304]
[1755873179741,1.69,4604.8,4604.7,2.047431]
[1755873180070,1.69,4604.8,4604.7,3.08466288]
[1755873180284,1.69,4604.8,4603.4,0.073]
[1755873180436,1.69,4604.8,4601.1,1.67]
[1755873180636,1.69,4604.8,4601.0,2.17341214]
[1755873180637,0.02714617,4604.7,4604.1,2.17196223]
[1755873180866,0.02714617,4604.7,4601.2,30.0]
[1755873180867,5.99114617,4604.7,4602.6,0.1644]
[1755873181076,1.69,4604.8,4602.7,0.0625]
[1755873181250,0.02714676,4604.6,4602.1,2.17292105]
[1755873181444,0.02714676,4604.6,4602.2,2.45848911]
[1755873181651,1.69,4604.8,4602.3,14.58815]
[1755873181881,1.69,4604.8,4602.9,2.17254076]
[1755873182064,1.69,4604.8,4603.1,3.0]
[1755873182380,0.02,4605.8,4603.3,3.0]
[1755873182547,0.02,4605.8,4605.7,2.17122261]
[1755873182944,0.02,4605.8,4605.7,6.72505561]
[1755873183144,0.02,4605.8,4605.1,0.1111]
[1755873183342,0.02,4605.8,4605.2,3.219335]
[1755873183577,0.02,4605.8,4605.7,2.17122261]
[1755873183788,0.02,4605.8,4605.7,10.95794303]
[1755873183941,1.67,4607.1,4606.7,2.17075129]
[1755873184148,1.67,4607.1,4606.7,8.61820129]
[1755873184355,1.67,4607.1,4606.7,3.25025]
[1755873184556,1.67,4607.1,4606.7,2.47865129]
[1755873184848,5.24,4608.8,4607.7,2.17028018]
[1755873184849,0.02,4608.8,4607.7,2.17028018]
[1755873185047,0.02,4608.8,4607.7,5.17028018]
[1755873185277,0.02,4608.8,4607.7,5.41938018]
[1755873185478,0.02,4608.8,4607.7,3.375541]
[1755873185785,1.69,4607.8,4605.9,0.1678]
[1755873185946,1.69,4607.8,4604.8,0.1701]
[1755873185947,5.9552,4607.7,4604.8,0.1701]
[1755873186151,0.4388,4607.6,4604.0,0.1695]
[1755873186393,3.46592909,4607.6,4602.8,0.2306]
[1755873186679,3.46592909,4607.6,4601.9,0.2284]
[1755873186680,3.0,4605.2,4601.9,0.2284]
[1755873186880,1.67,4606.4,4599.8,0.02]
[1755873186881,1.67,4604.5,4600.4,0.16074363]
[1755873187045,41.63794381,4605.1,4599.8,0.02]
[1755873187046,3.0,4603.2,4599.8,0.02]
[1755873187245,3.0,4602.1,4599.8,0.18179316]
[1755873187450,8.0879621,4602.0,4599.8,0.02]
[1755873187709,1.67,4601.9,4599.9,3.748579]
[1755873187995,7.621,4601.9,4600.0,3.37218263]
[1755873188192,0.02716328,4601.8,4600.0,0.39285763]
[1755873188398,1.67,4601.9,4600.1,2.364661]
[1755873188568,1.67,4601.9,4599.9,30.0]
[1755873188775,0.02716328,4601.8,4599.8,0.18463393]
[1755873189098,1.67,4602.6,4600.1,3.0]
[1755873189299,1.67,4602.6,4600.5,3.0]
[1755873189484,0.34005177,4602.0,4600.6,0.6]
[1755873189790,0.34005177,4602.0,4599.8,0.18463393]
[1755873189791,0.49336269,4601.9,4599.8,0.18463393]
[1755873189992,5.949,4601.8,4599.9,4.649971]
[1755873190196,1.67,4601.7,4600.0,5.033549]
[1755873190393,1.67,4601.7,4601.4,2.17324825]
[1755873190570,1.67,4601.7,4601.4,2.17322999]
[1755873190770,1.67,4602.6,4601.5,2.271668]
[1755873190971,1.67,4602.6,4601.6,2.201869]
[1755873191299,1.67,4603.5,4603.3,2.17233634]
[1755873191497,1.67,4604.0,4603.3,2.17234691]
[1755873191662,1.67,4604.0,4602.6,2.172685]
[1755873191858,1.67,4604.0,4602.8,3.0]
[1755873192079,1.67,4604.0,4602.7,24.0726685]
[1755873192080,1.67,4604.0,4602.9,4.932137]
[1755873192398,1.67,4604.0,4602.2,0.001]
[1755873192399,0.02715089,4603.9,4602.2,0.001]
[1755873192786,2.1362,4604.0,4602.3,10.92733]
[1755873192980,1.67,4603.9,4603.7,2.17213775]
[1755873193176,1.69,4604.8,4603.8,7.87951278]
[1755873193494,1.69,4604.8,4604.1,2.17197]
[1755873193662,0.02714617,4604.7,4602.3,2.17282663]
[1755873193863,1.69,4604.8,4604.7,7.122691]
[1755873193864,0.02,4604.8,4604.7,7.122691]
[1755873194201,0.02,4604.8,4604.7,5.751148]
[1755873194384,0.02,4604.8,4604.7,6.68903539]
[1755873194900,0.002,4605.8,4605.7,2.17122261]
[1755873195211,0.002,4605.8,4605.7,15.00637561]
[1755873195504,0.002,4605.8,4605.7,3.916247]
[1755873195798,0.002,4605.8,4605.7,2.28522261]
[1755873196001,0.002,4605.8,4605.7,5.73087255]
[1755873196201,0.002,4605.8,4605.7,5.2029]
[1755873196500,0.002,4605.8,4604.7,0.95619163]
[1755873196804,0.002,4605.8,4604.8,4.557265]
[1755873197001,0.4662,4605.7,4604.7,0.16390424]
[1755873197204,0.02714087,4605.6,4602.9,2.17254339]
[1755873197504,0.02714087,4605.6,4598.0,2.716]
[1755873197505,2.1362,4605.5,4603.0,2.01197]
[1755873197670,0.02714205,4605.4,4602.9,0.16545302]
[1755873197863,0.02714205,4605.4,4601.6,0.0314]
[1755873197864,0.0744,4604.8,4603.0,5.347708]
[1755873198065,5.24614617,4604.7,4603.0,0.5347708]
[1755873198299,11.1522,4604.7,4603.1,8.386127]
[1755873198497,0.0744,4604.8,4604.7,2.17169413]
[1755873198672,0.0744,4604.8,4604.7,16.18673213]
[1755873198871,0.0744,4604.8,4604.7,5.20169413]
[1755873199202,0.0744,4604.8,4603.7,0.0959]
[1755873199409,1e-08,4605.8,4605.7,2.17122261]
[1755873199702,0.002,4607.3,4607.1,2.1705439]
[1755873199904,0.002,4607.3,4605.9,2.17112833]
[1755873200111,0.002,4607.3,4606.0,4.451606]
[1755873200269,1.669,4607.2,4605.7,0.16440673]
[1755873200471,3.924,4607.1,4605.8,7.0466]
[1755873200665,3.924,4607.1,4605.1,20.727195]
[1755873200891,0.4662,4607.0,4605.0,0.16263785]
[1755873201096,0.4662,4607.0,4604.0,12.96508497]
[1755873201301,5.928,4606.9,4604.1,5.7966185]
[1755873201598,6.41952525,4606.8,4604.2,2.433]
[1755873201800,3.0,4606.7,4604.3,2.808]
[1755873202007,0.49252525,4606.6,4602.8,0.0211]
[1755873202180,3.0,4606.5,4602.9,30.0]
[1755873202513,0.002,4607.3,4605.8,3.0]
[1755873202807,0.003,4608.0,4607.2,12.96508497]
[1755873203005,0.003,4608.0,4607.3,2.25213168]
[1755873203172,0.003,4608.0,4606.5,0.0011]
[1755873203368,0.003,4608.0,4606.7,3.0]
[1755873203574,0.003,4608.0,4607.6,2.17028339]
[1755873203806,0.003,4608.0,4607.7,30.0217028]
[1755873204011,0.003,4608.0,4607.8,2.17023308]
[1755873204312,0.003,4609.4,4608.9,3.0]
[1755873204624,1.669,4611.3,4611.1,2.16867152]
[1755873204772,0.33963137,4611.4,4609.6,3.0]
[1755873204773,0.33963137,4611.4,4611.2,30.0]
[1755873204973,0.02632525,4612.1,4611.1,30.0]
[1755873205169,1.669,4612.2,4610.3,2.16902334]
[1755873205406,1.669,4612.2,4610.4,3.62818]
[1755873205407,0.02632525,4611.7,4610.4,3.62818]
[1755873205610,0.02632525,4611.7,4609.2,6.72219273]
[1755873205778,0.4662,4611.6,4609.3,5.48682826]
[1755873205985,0.4662,4611.6,4606.5,12.96508497]
[1755873205986,3.0,4610.9,4606.5,12.96508497]
[1755873206294,0.1088,4608.6,4607.9,0.1088]
[1755873206497,12.802,4608.5,4606.9,0.02170657]
[1755873206682,1.69532525,4608.4,4607.5,12.96508497]
[1755873206881,1.669,4609.2,4607.7,4.313]
[1755873207106,5.917,4609.9,4608.6,3.0]
[1755873207107,1.669,4609.9,4608.6,3.0]
[1755873207286,1.669,4609.9,4609.0,3.0]
[1755873207614,1.669,4609.9,4608.9,12.96508497]
[1755873207615,0.002,4609.5,4609.3,2.16952682]
[1755873207798,0.002,4609.5,4609.4,4.980085]
[1755873208000,0.002,4609.5,4609.4,9.7536]
[1755873208204,0.002,4609.5,4609.4,3.51417171]
[1755873208517,0.002,4609.5,4609.4,5.42853371]
[1755873208815,0.002,4609.5,4609.4,30.70238708]
[1755873208996,0.002,4609.5,4609.4,13.86915708]